Cogmind - Beta 14 @@@ ROGUE MODE // 2025.05.05 @ 17:12:50 Player: gallo Result: Self-destructed Performance ------------- Evolutions (1) 500 Regions Visited (2) 400 Robots Destroyed (18) 90 Value Destroyed (405) 405 Prototype IDs (0) 0 Alien Tech Used (0) 0 Bonus (8) 8 TOTAL SCORE: 1403 Bonus ------- High Alert Combat Kills 8 Cogmind --------- Core Integrity 201/400 Matter 270/300 Energy 265/265 System Corruption 0% Temperature Warm (110) Movement Walking (120) Location -9/Materials Parts ------- > --- POWER (1) -------- Improved Ion Engine > --- PROPULSION (3) --- Aluminum Leg Aluminum Leg > --- UTILITY (3) ------ Small Storage Unit Structural Scanner > --- WEAPON (2) ------- Grenade Launcher > --- INVENTORY (8) ---- Ion Engine Light Ion Engine Medium Laser Assault Rifle Light Assault Rifle Welding Torch Peak State ------------ > --- POWER ------------ Improved Ion Engine > --- PROPULSION ------- Aluminum Leg Aluminum Leg Aluminum Leg > --- UTILITY ---------- Small Storage Unit Structural Scanner > --- WEAPON ----------- Particle Gun Grenade Launcher > --- INVENTORY -------- Ion Engine Light Ion Engine Medium Laser Assault Rifle Light Assault Rifle Welding Torch [Rating: 10] Favorites ----------- Power Ion Engine Engine Ion Engine Propulsion Aluminum Leg Leg Aluminum Leg Utility Small Storage Unit Device Structural Scanner Storage Small Storage Unit Processor Signal Interpreter Protection Propulsion Shielding Weapon Light Assault Rifle Energy Gun Medium Laser Ballistic Gun Light Assault Rifle Launcher Grenade Launcher Build | -11 -10 -9 ------- Run | Yrd Mat Mat Slots Evolved 2 | . . 2 Power . | . . . Propulsion 1 | . . 1 Utility 1 | . . 1 Weapon . | . . . Parts Attached 14 | 6 2 6 Power 2 | 1 . 1 Engine 2 | 1 . 1 Core . | . . . Reactor . | . . . Propulsion 4 | 2 . 2 Treads . | . . . Leg 4 | 2 . 2 Wheel . | . . . Hover . | . . . Flight . | . . . Utility 4 | 1 2 1 Device 1 | . . 1 Storage 1 | 1 . . Processor 1 | . 1 . Hackware . | . . . Protection 1 | . 1 . Artifact . | . . . Weapon 4 | 2 . 2 Energy Gun 2 | 1 . 1 Energy Cannon . | . . . Ballistic Gun 1 | 1 . . Ballistic Cannon . | . . . Launcher 1 | . . 1 Special Weapon . | . . . Impact Weapon . | . . . Slashing Weapon . | . . . Piercing Weapon . | . . . Special Melee Weapon . | . . . Unidentified Prototypes . | . . . Parts Lost 4 | . . 4 Power . | . . . Propulsion 2 | . . 2 Utility 1 | . . 1 Weapon 1 | . . 1 Highest Loss Streak 3 | . . 3 To Critical Strikes . | . . . Average Slot Usage (%) 88 | . 92 83 Engine 12 | . 14 11 Leg 26 | . 28 23 Device 4 | . . 9 Storage 12 | . 14 11 Processor 1 | . 2 . Protection 5 | . 4 6 Energy Gun 12 | . 14 11 Ballistic Gun 10 | . 14 6 Launcher 2 | . . 4 Peak Build Rating 10 | 6 7 10 Average Rating 7 | 5 6 8 On Entrance 4 | . 6 7 Naked Turns . | . . . Heaviest Build 19 | 13 14 19 Greatest Support 30 | 20 20 30 Greatest Overweight (x) 1 | 1 . 1 Average Overweight (x) . | . . . Largest Inventory Capacity 8 | 8 8 8 Average Capacity 7 | 7 8 8 Most Carried 6 | 2 5 6 Average Carried 3 | 1 3 4 Final Capacity 8 | 8 8 8 Final Carried 6 | 2 4 6 Class Distribution -------------------- 100% | Mutant Dominant Class ---------------- Mutant | -10/Materials Mutant | -9/Materials Resources | -11 -10 -9 ----------- Run | Yrd Mat Mat Matter Collected 424 | 145 140 139 Remotely . | . . . Salvage Created 522 | . 140 382 Parts 34 | . 7 27 Haulers Intercepted . | . . . Recyclers Shooed 1 | . . 1 Parts Field Recycled . | . . . Retrieved Matter . | . . . Parts Self-Destructed . | . . . Prevented . | . . . Kills | -11 -10 -9 ------- Run | Yrd Mat Mat Combat Hostiles Destroyed 12 | . 2 10 Guns 5 | . 2 3 AOE 7 | . . 7 Classes Destroyed 8 | . 2 6 Worker 1 | . . 1 Builder 1 | . . 1 Tunneler 1 | . . 1 Recycler 1 | . . 1 Watcher 2 | . 2 . Swarmer 4 | . . 4 Grunt 6 | . 2 4 Sentry 2 | . . 2 Best Kill Streak 10 | . 2 10 Combat Bots Only 6 | . 2 6 Max Kills in Single Turn 2 | . 1 2 Gunslinging . | . . . Exploded 2 | . . 2 Melee . | . . . Uniques/NPCs Destroyed . | . . . Combat | -11 -10 -9 -------- Run | Yrd Mat Mat Hostile Shots Fired 80 | . 18 62 Missed 21 | . 6 15 Damage Taken 770 | . 144 626 Core 209 | . 10 199 Absorbed by Shields . | . . . Redirected to Shielding 50 | . 18 32 Core Remaining (%) 98 | 100 96 . Volleys Fired 39 | . 15 24 Largest 2 | . 2 2 Hottest 95 | . 70 95 Shots Fired 72 | . 30 42 Gun 61 | . 30 31 Cannon . | . . . Launcher 11 | . . 11 Special . | . . . Kinetic 22 | . 15 7 Thermal 39 | . 15 24 Explosive 11 | . . 11 Electromagnetic . | . . . Robot Hit Streak 10 | . 7 10 Robot Miss Streak 2 | . 2 2 Penetration Max . | . . . Secondary Targets 1 | . . 1 Max Gunslinging Chain 1 | . . 1 Shots Hit Robots 46 | . 18 28 Core Hits 29 | . 8 21 Critical Kills . | . . . Critical Parts Destroyed . | . . . Critical Strikes 2 | . 2 . Burn 2 | . 2 . Melee Attacks . | . . . Impact . | . . . Slashing . | . . . Piercing . | . . . Sneak Attacks . | . . . Combat Hostiles . | . . . Follow-up Attacks . | . . . Damage Inflicted 1008 | . 182 826 Guns 441 | . 182 259 Cannons . | . . . Explosions 567 | . . 567 Melee . | . . . Ramming . | . . . Kinetic 120 | . 69 51 Thermal 321 | . 113 208 Explosive 567 | . . 567 Electromagnetic . | . . . Impact . | . . . Slashing . | . . . Piercing . | . . . Highest Corruption . | . . . Average Corruption . | . . . Corruption Purged . | . . . Corruption Blocked . | . . . Overload Shots . | . . . Overflow Damage 3 | . . 3 Projectiles . | . . . Explosions 3 | . . 3 Melee . | . . . Knockbacks . | . . . Impact . | . . . Kinetic . | . . . Secondary . | . . . Self-Inflicted Damage 85 | . . 85 Shots 4 | . . 4 Rammed . | . . . Targets Rammed . | . . . Kicked . | . . . Crushed . | . . . Highest Temperature 208 | . 190 208 Average Temperature 71 | . 75 69 Received Heat Transfer 258 | . 72 186 Siege Activations . | . . . Robots Corrupted . | . . . Combat Hostiles . | . . . Parts Fried . | . . . Impact Corruptions . | . . . Robots Melted . | . . . Combat Hostiles . | . . . Parts Melted 1 | . . 1 Heat Transferred 999 | . 481 518 Parts Sabotaged . | . . . Parts Stolen . | . . . Parts Stripped . | . . . Power Chain Reactions . | . . . Alert | -11 -10 -9 ------- Run | Yrd Mat Mat Peak Influence 466 | . 94 466 Initial 39 | . . 39 Average 86 | . 43 166 Maximum Alert Level 2 | . . 2 Low Security (%) 84 | 100 100 62 Level 1 12 | . . 32 Level 2 2 | . . 5 Level 3 . | . . . Level 4 . | . . . Level 5 . | . . . High Security . | . . . Max Security . | . . . Squads Dispatched 4 | . 1 3 Investigation 2 | . 1 1 Extermination . | . . . Reinforcement 2 | . . 2 Assault . | . . . Garrison . | . . . Intercept . | . . . Searches Triggered . | . . . Construction Impeded . | . . . Haulers Reinforced . | . . . Active Scanning Responses . | . . . Cargo Convoy Interrupts . | . . . Stealth | -11 -10 -9 --------- Run | Yrd Mat Mat Distress Signals 3 | . . 3 Communications Jammed . | . . . Distress Signals . | . . . Times Spotted 31 | . 5 26 Peak Tracking Total 9 | . 2 9 Tactical Retreats 2 | . . 2 Traps | -11 -10 -9 ------- Run | Yrd Mat Mat Traps Triggered 1 | . 1 . Indirectly . | . . . Trap Hack Attempts . | . . . Triggered . | . . . Disarmed . | . . . Reprogrammed . | . . . Reused . | . . . Traps Extracted . | . . . Installed . | . . . Triggered . | . . . Machines | -11 -10 -9 ---------- Run | Yrd Mat Mat Machines Disabled 2 | . . 2 Max in Single Turn 1 | . . 1 Machines Repaired . | . . . Machines Dismantled . | . . . Machines Sabotaged . | . . . Overloaded Fab Kills . | . . . Hacking | -11 -10 -9 --------- Run | Yrd Mat Mat Machines Accessed 4 | . 3 1 Terminals 3 | . 2 1 Fabricators . | . . . Repair Stations . | . . . Recycling Units 1 | . 1 . Scanalyzers . | . . . Garrison Access . | . . . Total Hacks 7 | . 5 2 Successful 2 | . 1 1 Failed 5 | . 4 1 Catastrophic 3 | . 2 1 Database Lockouts . | . . . Manual 2 | . 1 1 Terminals 6 | . 4 2 Fabricators . | . . . Repair Stations . | . . . Recycling Units 1 | . 1 . Scanalyzers . | . . . Garrison Access . | . . . Terminal Hacks 1 | . . 1 Transport Status 1 | . . 1 Fabricator Hacks . | . . . Repair Station Hacks . | . . . Recycling Unit Hacks 1 | . 1 . Report Inventory 1 | . 1 . Scanalyzer . | . . . Garrison Access Hacks . | . . . Unauthorized Hacks . | . . . Terminals . | . . . Fabricators . | . . . Repair Stations . | . . . Recycling Units . | . . . Scanalyzers . | . . . Garrison Access . | . . . Data Cores Recovered . | . . . Used . | . . . Hacking Detections 4 | . 3 1 Full Trace Events 2 | . 1 1 Feedback Events . | . . . Feedback Blocked . | . . . Robot Schematics Acquired . | . . . Robots Built . | . . . Authchips . | . . . Time . | . . . Total Robot Build Rating . | . . . Part Schematics Acquired . | . . . Parts Built . | . . . Authchips . | . . . Time . | . . . Total Part Build Rating . | . . . Parts Repaired . | . . . Time . | . . . Parts Recycled . | . . . Recycled Matter . | . . . Retrieved Matter . | . . . Retrieved Components . | . . . Parts Scanalyzed . | . . . Part Schematics Acquired . | . . . Parts Damaged . | . . . Bothacking | -11 -10 -9 ------------ Run | Yrd Mat Mat Used RIF Installer . | . . . Robots Hacked . | . . . Non-combat . | . . . Combat . | . . . Robot Hacks Applied . | . . . Relay Couplers Released . | . . . Fabnet Peak Effective % . | . . . Robots Rewired . | . . . Allies Hacked . | . . . Hacks Repelled . | . . . Allies | -11 -10 -9 -------- Run | Yrd Mat Mat Total Allies . | . . . Largest Group . | . . . Highest-Rated Group . | . . . Highest-Rated Ally . | . . . Total Orders . | . . . Ally Attacks . | . . . Total Damage . | . . . Kills . | . . . Allies Corrupted . | . . . Allies Melted . | . . . Intel | -11 -10 -9 ------- Run | Yrd Mat Mat Robot Analysis Total . | . . . Derelict Logs Recovered . | . . . Drone Launches . | . . . Drone Recoveries . | . . . Exploration | -11 -10 -9 ------------- Run | Yrd Mat Mat Turns Passed 665 | 89 312 264 Spaces Moved 430 | 63 216 151 Core 5 | 5 . . Treads . | . . . Legs 425 | 58 216 151 Wheels . | . . . Hover . | . . . Flight . | . . . Fastest Speed 50 | 50 120 120 Average Speed 119 | 116 120 120 Slowest Speed 190 | 120 120 190 Overloaded Moves . | . . . Propulsion Burnouts . | . . . Robots Hopped . | . . . Cave-ins Triggered . | . . . Exploration Rate (%) 20 | 4 42 14 Regions Visited 2 Branch Regions . Pre-discovered Areas . | . . . Known Exits Taken . | . . . Unknown Exits Taken 2 | 1 1 . Scrap Searched . | . . . Spaces Dug . | . . . Terrain Destroyed 79 | . . 79 Melee . | . . . Projectile . | . . . AOE 79 | . . 79 Terrain Rammed . | . . . Walls Destroyed . | . . . Machines Disabled . | . . . Actions | -11 -10 -9 --------- Run | Yrd Mat Mat Total 505 | 76 241 188 Wait 18 | 6 6 6 Move 428 | 62 215 151 Hop . | . . . Pick Up 6 | 2 3 1 Fast Attach 10 | 6 1 3 Attach . | . . . Detach . | . . . Swap 4 | . 1 3 Drop . | . . . Fire 39 | . 15 24 Melee . | . . . Ram . | . . . Kick . | . . . Crush . | . . . Escape Stasis . | . . . Rewire . | . . . Trap . | . . . Miscellaneous . | . . . Route ------- -11/Scrapyard -10/Materials -9/Materials History --------- Turn | Location | Event 9 | -11/Scrapyard | Discovered new exit (range 15) 90 | -11/Scrapyard | Entered Materials 322 | -10/Materials | Build established: Mutant 380 | -10/Materials | Discovered new exit (range 15) 402 | -10/Materials | Entered another Materials area 402 | -9/Materials | Evolved 2 slots: Propulsion x1, Utility x1 666 | -9/Materials | Self-destructed Last Messages --------------- 00649_ G-34 Mercenary destroyed. 00650_ K-01 Serf collects debris. 00651_ U-05 Engineer lays Concrete. 00651_ Terminal disabled. 00651_ W-16 Scout sends out distress signal. 00652_ U-05 Engineer lays Concrete. 00653_ K-01 Serf collects debris. 00654_ G-34 Mercenary destroyed. 00655_ K-01 Serf collects debris. 00655_ U-05 Engineer builds a Wall. 00656_ T-07 Excavator is excavating. 00656_ K-01 Serf collects debris. 00659_ The unstable cave ceiling collapses. 00659_ ALERT: Hostiles spotted, dispatching reinforcements to Terminal M008. 00659_ U-05 Engineer builds a Wall. 00660_ T-07 Excavator is excavating. 00660_ W-16 Scout sends out distress signal. 00663_ U-05 Engineer builds a Wall. 00664_ Particle Gun destroyed. Map ----- +----------------------------------------------------+ | ??????????????????????????????????????????????## | | ??????????????????????????????????????????????## | | ??????????????????????????????????????????????## | | ??????????????????????????????????????????????## | | ??????????????????????????????????????????????## | | ??????????????????????????????????????#####???## | | ??????????????????????????????????############## | | ??????????????????????????????????###### ####### | | ??????????????????????????????????## *% # | | ???????????????????? # ?? ###?????##"" " + | | ?????????????????+#### ###?????##"" """"" # | | ????????????????? #### # *?????##"T """"" # | | ????????????????? # **????##"" """"" # | | ??????????????? w # ???##"" """ # | | ???????????????## ![ # T?### # | | ?????????????#### [! #! ""####### # ##### | | ?????????????#### ggmg k # ## # ## | | ????????????? ##+#### ## | | ????????????? ######## | | ?????????????? k%| % u * | | ??????????????## ^ =# ## # # ### | | ?????????????? # # * ###### | | ?????????????? # g%! % =%= # | | ?????????????????? """ # [ ### | | ???????????????????""""" [ ##### ?? | | ???????????????????"""""k@# ##???????? | | ???????????????????"""""w ###### #####???????? | | ??????????????????? """ ### #???????? | | ??????????????????? ?????? ??????????? | | ?????????????????? l w ????? ### ??????????? | | ????????????????? g ##+######????? ####??????????? | | ???????????????## # #????? ##????????????? | | ???????????????## ???????????????????????????????? | | ??????????????? # ???????????????????????????????? | | ??????????????? # ???????????????????????????????? | | ?????????????????????????????????????????????????? | | ?????????????????????????????????????????????????? | | ?????????????????????????????????????????????????? | | ?????????????????????????????????????????????????? | | ?????????????????????????????????????????????????? | | ?????????????????????????????????????????????????? | | ?????????????????????????????????????????????????? | | ?????????????????????????????????????????????????? | | ?????????????????????????????????????????????????? | | ?????????????????????????????????????????????????? | | ?????????????????????????????????????????????????? | | ?????????????????????????????????????????????????? | | ?????????????????????????????????????????????????? | | ?????????????????????????????????????????????????? | | ?????????????????????????????????????????????????? | +----------------------------------------------------+ Best States ------------- Heat Dissipation 28 Energy Generation 12 Energy Capacity 265 Matter Stores 300 Matter Capacity 300 Sight Range 16 Terrain Scan Density 10 Propulsion Shielding 33 Evasion (%) 55 Item Schematics ----------------- None Robot Schematics ------------------ None Fabricated ------------ Nothing Alien Tech Used ----------------- None Achievements -------------- None Challenges ------------ None Game ------ Seed SystemFluxMicroactuators Manual? 0 Play Time 00:05:45 Cumulative 6.5 hours Start 2025.05.05 @ 17:02:40 End 2025.05.05 @ 17:12:50 Sessions 3 Manual Loads 0 Difficulty Rogue Special Mode None Game No. 29 Rogue 29 Adventurer 0 Explorer 0 Win Type - Total 0 Types 0/0/0/0/0/0/0/0/0 Lore% 5 Gallery% 13 Achievement% 10 Wizard Run 0 Options --------- Layout 1 ASCII 0 Keyboard 1 Movement Numpad Keybinds 0 Fullscreen 1 Font 24/Smallcaps Map View 50x35 Zoom Use 0% Tactical HUD 1 Map Filters NONE Filters NONE Steam 1 RUN: 7cc5b06f-4049-4475-8eaa-7cb8b44badfa